bitfinex/quotes_BTCUSD_20240906
["timestamp","ask_amount","ask_price","bid_price","bid_amount"]
[1725652813331,0.000816,53673.0,53661.0,0.01]
[1725652813332,0.000816,53673.0,53670.0,0.01]
[1725652813546,0.18632,53671.0,53670.0,0.01]
[1725652813763,0.000816,53673.0,53670.0,0.01]
[1725652814000,0.000816,53673.0,53672.0,0.01]
[1725652814232,0.932381,53673.0,53672.0,0.1981]
[1725652814457,1.304313,53668.0,53667.0,0.3321]
[1725652814684,1.304313,53668.0,53664.0,0.1981]
[1725652814685,0.559023,53665.0,53664.0,0.1981]
[1725652814922,0.186348,53663.0,53662.0,0.3321]
[1725652815183,0.559044,53663.0,53662.0,0.3321]
[1725652815409,0.93181,53659.0,53658.0,0.1854]
[1725652815632,0.93181,53659.0,53658.0,0.1954]
[1725652815844,0.559086,53659.0,53658.0,0.1954]
[1725652816069,0.58823413,53663.0,53662.0,0.01]
[1725652816286,0.559075,53660.0,53659.0,0.01]
[1725652816510,0.93181,53659.0,53658.0,0.1954]
[1725652816743,0.93181,53659.0,53658.0,0.1854]
[1725652816974,0.23852953,53661.0,53652.0,0.1954]
[1725652816975,0.186382,53653.0,53652.0,0.1954]
[1725652817194,0.559147,53653.0,53652.0,0.2154]
[1725652817416,0.186382,53653.0,53652.0,0.2154]
[1725652817650,0.372697,53663.0,53657.0,0.01]
[1725652817881,0.23852953,53663.0,53656.0,0.01]
[1725652818108,0.186382,53653.0,53652.0,0.1954]
[1725652818324,0.559147,53653.0,53652.0,0.1954]
[1725652818542,0.559147,53653.0,53652.0,0.1854]
[1725652818762,0.931912,53653.0,53652.0,0.1854]
[1725652819022,0.559158,53652.0,53651.0,0.3348]
[1725652819434,0.372752,53655.0,53652.0,0.01]
[1725652819709,0.03957116,53695.0,53651.0,0.3448]
[1725652819710,0.372717,53660.0,53657.0,0.03]
[1725652819946,0.23852953,53669.0,53657.0,0.03]
[1725652819947,0.55430836,53668.0,53657.0,0.03]
[1725652820177,0.33852953,53669.0,53657.0,0.03]
[1725652820178,0.186365,53658.0,53657.0,0.03]
[1725652820642,0.559096,53658.0,53657.0,0.03]
[1725652820878,0.186365,53658.0,53657.0,0.03]
[1725652821147,0.372694,53664.0,53646.0,0.372813]
[1725652821148,0.02918895,53666.0,53653.0,0.1955]
[1725652821430,0.23852953,53681.0,53662.0,0.1955]
[1725652821650,0.000816,53663.0,53662.0,0.754554]
[1725652822626,0.000816,53663.0,53662.0,1.127257]
[1725652822883,0.000816,53663.0,53662.0,1.49996]
[1725652823142,0.000816,53663.0,53662.0,1.127257]
[1725652823387,0.000816,53663.0,53662.0,1.49996]
[1725652823649,0.000816,53663.0,53662.0,1.127257]
[1725652824115,0.000816,53663.0,53662.0,1.83206]
[1725652824381,0.000816,53673.0,53662.0,1.83206]
[1725652824382,0.000816,53673.0,53672.0,0.891049]
[1725652824666,0.000816,53673.0,53672.0,1.826215]
[1725652825149,0.000816,53673.0,53672.0,0.522]
[1725652825440,0.000816,53673.0,53672.0,1.080949]
[1725652825669,0.000816,53673.0,53672.0,1.826215]
[1725652827427,0.186238,53695.0,53684.0,0.5309]
[1725652827657,0.372493,53693.0,53684.0,0.5309]
[1725652827893,0.186255,53690.0,53686.0,0.186268]
[1725652828133,0.02917402,53693.0,53685.0,0.372539]
[1725652828354,0.02917402,53693.0,53685.0,0.00372504]
[1725652828606,0.02917402,53693.0,53692.0,0.186247]
[1725652828832,0.02917402,53693.0,53684.0,0.5309]
[1725652829052,0.186258,53689.0,53684.0,0.5309]
[1725652829284,0.02917402,53693.0,53688.0,0.186259]
[1725652829531,0.02917402,53693.0,53684.0,0.5309]
[1725652829532,0.186271,53685.0,53684.0,0.5309]
[1725652829758,0.02917402,53693.0,53680.0,0.3465]
[1725652829759,0.558856,53681.0,53680.0,0.3465]
[1725652829994,0.23852953,53686.0,53680.0,0.3465]
[1725652829995,0.372545,53685.0,53680.0,0.3465]
[1725652830218,0.02917621,53681.0,53680.0,0.532788]
[1725652830441,0.02917621,53681.0,53680.0,0.3465]
[1725652830638,0.21546121,53681.0,53680.0,0.3465]
[1725652830920,0.02917621,53681.0,53680.0,0.3465]
[1725652831386,0.0550564,53694.0,53681.0,0.372568]
[1725652831611,0.186213,53702.0,53698.0,0.186226]
[1725652831844,0.90294737,53710.0,53698.0,0.186226]
[1725652831845,0.18621,53703.0,53699.0,0.186221]
[1725652832077,0.18621,53703.0,53698.0,0.377625]
[1725652832078,0.186212,53703.0,53698.0,0.377625]
[1725652832301,0.372412,53704.0,53698.0,0.1914]
[1725652832529,0.23852953,53710.0,53698.0,0.1914]
[1725652832530,0.558669,53699.0,53698.0,0.1914]
[1725652832981,0.18623,53697.0,53696.0,0.3157]
[1725652833224,0.18623,53697.0,53685.0,0.372541]
[1725652833225,0.186261,53688.0,53687.0,0.3357]
[1725652833442,0.23852953,53698.0,53687.0,0.3357]
[1725652833443,0.372481,53694.0,53687.0,0.521963]
[1725652833662,0.372481,53694.0,53687.0,0.3357]
[1725652833886,0.23852953,53698.0,53687.0,0.3357]
[1725652833887,0.558783,53688.0,53687.0,0.3357]
[1725652834098,0.60315135,53688.0,53687.0,0.3357]
[1725652834319,0.23852953,53698.0,53687.0,0.3357]
[1725652834538,0.186257,53689.0,53687.0,0.3357]
[1725652834757,0.372513,53690.0,53687.0,0.3357]
[1725652834758,0.186255,53690.0,53687.0,0.3357]
[1725652835007,0.186261,53689.0,53687.0,0.3357]
[1725652835259,0.18626,53689.0,53687.0,0.3357]
[1725652835529,0.186278,53683.0,53682.0,0.3445]
[1725652835757,0.372525,53688.0,53676.0,0.3445]
[1725652835758,0.61109553,53682.0,53676.0,0.3445]
[1725652835987,0.186297,53678.0,53676.0,0.3445]
[1725652836259,0.23852953,53682.0,53676.0,0.530801]
[1725652836513,0.02917922,53683.0,53682.0,0.186282]
[1725652837010,0.02917922,53683.0,53676.0,0.3445]
[1725652837011,0.02917922,53683.0,53678.0,0.372591]
[1725652837256,0.02917922,53683.0,53682.0,0.558846]
[1725652837735,0.02917922,53683.0,53682.0,0.93141]
[1725652837972,0.02917922,53683.0,53676.0,0.3445]
[1725652838242,0.40173922,53683.0,53676.0,0.3445]
[1725652838464,0.40173922,53683.0,53670.0,0.372642]
[1725652838465,0.02917922,53683.0,53682.0,0.872646]
[1725652838708,0.02917922,53683.0,53682.0,1.059146]
[1725652838970,0.02917922,53683.0,53682.0,0.5003]
[1725652840143,0.21545722,53683.0,53682.0,0.5003]
[1725652840405,0.02917922,53683.0,53682.0,0.5003]
[1725652840886,0.23852953,53688.0,53672.0,0.697327]
[1725652840887,0.1833,53687.0,53672.0,0.697327]
[1725652841162,0.186285,53681.0,53676.0,0.186301]
[1725652841415,0.186276,53684.0,53676.0,0.372602]
[1725652841675,0.186276,53684.0,53668.0,0.0002243]
[1725652841676,0.05510511,53696.0,53688.0,0.186261]
[1725652841906,0.05510511,53696.0,53688.0,0.1989]
[1725652841907,0.186249,53692.0,53688.0,0.1989]
[1725652842168,0.1,53698.0,53688.0,0.385161]
[1725652842169,0.372455,53698.0,53688.0,0.385161]
[1725652842452,0.372564,53683.0,53679.0,0.1989]
[1725652842674,0.39510511,53704.0,53678.0,0.3277]
[1725652842675,0.186277,53684.0,53678.0,0.186294]
[1725652842917,0.23852953,53687.0,53673.0,0.5266]
[1725652843165,0.23852953,53687.0,53675.0,0.372612]
[1725652843166,0.186284,53682.0,53675.0,0.372612]
[1725652843486,0.23852953,53687.0,53676.0,0.372601]
[1725652843707,0.186268,53686.0,53681.0,0.186282]
[1725652843932,0.186265,53687.0,53683.0,0.186278]
[1725652844187,0.186261,53688.0,53683.0,0.186278]
[1725652844415,0.186265,53687.0,53683.0,0.186278]
[1725652844634,0.187261,53689.0,53685.0,0.18627]
[1725652844867,0.373521,53689.0,53681.0,0.372568]
[1725652845090,0.558928,53674.0,53672.0,0.3274]
[1725652845310,0.186309,53674.0,53672.0,0.3274]
[1725652845536,0.23852953,53687.0,53672.0,0.3274]
[1725652845537,0.186296,53678.0,53672.0,0.3274]
[1725652845978,0.37258,53680.0,53675.0,0.186303]
[1725652845979,0.186289,53680.0,53675.0,0.186303]
[1725652846215,0.40177239,53677.0,53672.0,0.513716]
[1725652846442,0.186303,53676.0,53673.0,0.200532]
[1725652846934,0.02917039,53677.0,53673.0,0.200532]
[1725652847155,0.02917039,53677.0,53676.0,0.186303]
[1725652847426,0.02917039,53677.0,53676.0,0.931515]
[1725652847685,0.02917039,53677.0,53676.0,0.558909]
[1725652848187,0.02917039,53677.0,53673.0,0.200532]
[1725652848445,0.02917039,53677.0,53673.0,0.386842]
[1725652848709,0.21547039,53677.0,53673.0,0.386842]
[1725652849497,0.186305,53676.0,53673.0,0.200532]
[1725652849726,0.186309,53674.0,53673.0,0.001632]
[1725652849976,0.372609,53676.0,53673.0,0.001632]
[1725652850227,0.186305,53676.0,53673.0,0.001632]
[1725652850899,0.186296,53678.0,53674.0,0.186307]
[1725652851610,0.186286,53681.0,53677.0,0.186297]
[1725652851853,0.372559,53683.0,53675.0,0.372612]
[1725652852143,0.05504124,53687.0,53678.0,0.186293]
[1725652852393,0.05504124,53687.0,53674.0,0.3443]
[1725652852394,0.186265,53687.0,53682.0,0.186279]
[1725652852668,0.186266,53687.0,53680.0,0.372572]
[1725652852918,0.000816,53689.0,53679.0,0.1977]
[1725652852919,0.372543,53685.0,53679.0,0.1977]
[1725652853182,0.373335,53689.0,53679.0,0.1977]
[1725652853183,0.373335,53689.0,53683.0,0.186276]
[1725652853464,0.373335,53689.0,53681.0,0.186282]
[1725652853465,0.186269,53686.0,53681.0,0.186282]
[1725652853688,0.186265,53687.0,53683.0,0.186278]
[1725652853922,0.373335,53689.0,53682.0,0.186279]
[1725652853923,0.186269,53686.0,53682.0,0.186279]
[1725652854178,0.187074,53689.0,53685.0,0.186269]
[1725652854421,0.186261,53688.0,53685.0,0.186269]
[1725652854699,0.186289,53680.0,53679.0,0.1977]
[1725652854929,0.000816,53689.0,53679.0,0.1977]
[1725652855170,0.187074,53689.0,53683.0,0.372553]
[1725652855404,0.187074,53689.0,53688.0,0.931305]
[1725652855405,0.000816,53689.0,53688.0,0.931305]
[1725652855913,0.000816,53689.0,53688.0,1.303827]
[1725652856157,0.000816,53689.0,53688.0,0.931305]
[1725652856402,0.000816,53689.0,53688.0,0.754883]
[1725652856883,0.000816,53689.0,53688.0,1.499927]
[1725652857118,0.000816,53689.0,53688.0,1.127405]
[1725652858418,0.02998805,53689.0,53688.0,1.441905]
[1725652858686,0.372389,53708.0,53707.0,0.186195]
[1725652858687,0.55430836,53708.0,53707.0,0.186195]
[1725652858923,0.55430836,53708.0,53707.0,1.429275]
[1725652859180,0.02916674,53710.0,53707.0,0.4983]
[1725652859451,0.02916674,53710.0,53708.0,0.186189]
[1725652859684,0.02916674,53710.0,53709.0,0.186188]
[1725652859938,0.02916674,53710.0,53708.0,0.186191]
[1725652860161,0.02916674,53710.0,53709.0,0.186188]
[1725652860393,0.02916674,53710.0,53707.0,0.4983]
[1725652860394,0.02916674,53710.0,53707.0,0.684493]
[1725652860656,0.02916674,53710.0,53703.0,0.31472416]
[1725652860894,0.372379,53709.0,53703.0,0.00022416]
[1725652861168,0.19161314,53710.0,53703.0,0.00022416]
[1725652861169,0.372394,53707.0,53703.0,0.00022416]
[1725652861393,0.1624464,53710.0,53703.0,0.00022416]
[1725652861611,0.186205,53704.0,53703.0,0.00022416]
[1725652862056,0.558616,53704.0,53703.0,0.00022416]
[1725652862287,0.931027,53704.0,53703.0,0.00022416]
[1725652863309,1.303438,53704.0,53703.0,0.00022416]
[1725652863570,1.738838,53704.0,53703.0,0.00022416]
[1725652863806,2.56576157,53704.0,53703.0,0.00022416]
[1725652864033,2.0775591,53704.0,53703.0,0.00022416]
[1725652864267,1.96735661,53704.0,53703.0,0.00022416]
[1725652864487,1.937938,53704.0,53703.0,0.00022416]
[1725652864744,1.52066421,53704.0,53703.0,0.00022416]
[1725652865050,0.558616,53704.0,53703.0,0.00022416]
[1725652865304,1.0934734,53704.0,53703.0,0.00022416]
[1725652865535,1.20540826,53704.0,53703.0,0.00022416]
[1725652866007,1.23290309,53704.0,53703.0,0.00022416]
[1725652866275,1.12264277,53704.0,53703.0,0.00022416]
[1725652866510,0.21537437,53704.0,53703.0,0.00022416]
[1725652866740,0.02916937,53704.0,53703.0,0.00022416]
[1725652867190,0.96019637,53704.0,53703.0,0.00022416]
[1725652867662,0.21537437,53704.0,53703.0,0.00022416]
[1725652869059,0.02916937,53704.0,53703.0,0.00022416]
[1725652869325,0.27057527,53704.0,53703.0,0.00022416]
[1725652870042,0.27060064,53704.0,53703.0,0.00022416]
[1725652871289,0.27060064,53704.0,53700.0,0.186219]
[1725652871572,0.27060064,53704.0,53696.0,0.744931]
[1725652871573,0.05522627,53704.0,53703.0,0.705109]
[1725652871805,0.13806568,53709.0,53703.0,0.705109]
[1725652871806,0.186186,53710.0,53706.0,0.186197]
[1725652872504,0.186187,53710.0,53705.0,0.1862]
[1725652872738,0.4551824,53714.0,53703.0,0.5189]
[1725652872739,0.05522627,53711.0,53703.0,0.5189]
[1725652872969,0.186197,53707.0,53703.0,0.705108]
[1725652873188,0.186199,53706.0,53703.0,0.5189]
[1725652873444,0.372388,53708.0,53703.0,0.5189]
[1725652873445,0.000814,53708.0,53703.0,0.5189]
[1725652873909,0.000814,53708.0,53704.0,0.372411]
[1725652874429,0.000814,53708.0,53703.0,0.5189]
[1725652874430,0.000814,53708.0,53707.0,0.558585]
[1725652875141,0.000814,53708.0,53707.0,0.930975]
[1725652877718,0.000814,53708.0,53705.0,0.1862]
[1725652877933,0.000814,53708.0,53707.0,0.186195]
[1725652878170,0.000814,53708.0,53706.0,0.186198]
[1725652878379,0.000814,53708.0,53703.0,0.51912416]
[1725652878380,0.000814,53708.0,53707.0,0.186195]
[1725652878825,0.000814,53708.0,53707.0,0.558585]
[1725652879952,0.000814,53708.0,53707.0,0.930975]
[1725652880241,0.000814,53708.0,53707.0,1.303365]
[1725652880463,0.000814,53708.0,53703.0,0.51912416]
[1725652880711,0.000814,53708.0,53703.0,0.00022416]
[1725652880712,0.558616,53704.0,53703.0,0.00022416]
[1725652880939,0.98619739,53704.0,53703.0,0.00022416]
[1725652881179,1.798849,53704.0,53703.0,0.00022416]
[1725652881406,0.15519677,53704.0,53703.0,0.31832416]
[1725652881674,0.372411,53704.0,53703.0,0.31832416]
[1725652881885,0.372411,53704.0,53703.0,0.00022416]
[1725652881886,0.72098054,53704.0,53703.0,0.00022416]
[1725652882138,2.15452853,53704.0,53703.0,0.00022416]
[1725652882359,2.11660254,53704.0,53703.0,0.00022416]
[1725652882583,1.83262336,53704.0,53703.0,0.00022416]
[1725652882833,1.72219154,53704.0,53703.0,0.00022416]
[1725652883045,0.6148337,53704.0,53703.0,0.00022416]
[1725652883277,0.932027,53704.0,53703.0,0.00022416]
[1725652883502,1.04245793,53704.0,53703.0,0.00022416]
[1725652883734,0.559616,53704.0,53703.0,0.00022416]
[1725652884000,0.80482111,53704.0,53703.0,0.00022416]
[1725652884229,0.72198054,53704.0,53703.0,0.00022416]
[1725652884453,1.3554302,53704.0,53703.0,0.00022416]
[1725652884695,1.96537597,53704.0,53703.0,0.00022416]
[1725652884918,2.18940444,53704.0,53703.0,0.00022416]
[1725652885139,2.56181544,53704.0,53703.0,0.00022416]
[1725652885362,2.52106417,53704.0,53703.0,0.00022416]
[1725652885868,2.52106417,53704.0,53703.0,0.00185216]
[1725652886339,2.71579166,53704.0,53703.0,0.00185216]
[1725652886591,2.56023118,53704.0,53703.0,0.00185216]
[1725652887035,2.55023118,53704.0,53703.0,0.00185216]
[1725652887256,2.56023118,53704.0,53703.0,0.00185216]
[1725652887748,2.39786664,53704.0,53703.0,0.00185216]
[1725652887935,2.38786664,53704.0,53703.0,0.00185216]
[1725652888217,2.55196162,53704.0,53703.0,0.00185216]
[1725652888451,1.64735062,53704.0,53703.0,0.00185216]
[1725652888683,1.79006745,53704.0,53703.0,0.00185216]
[1725652888935,1.79006745,53704.0,53703.0,0.001628]
[1725652889166,1.25187839,53704.0,53703.0,0.001628]
[1725652889393,0.22377419,53704.0,53703.0,0.001628]
[1725652889612,0.38040576,53704.0,53703.0,0.001628]
[1725652889831,0.49093874,53704.0,53703.0,0.001628]
[1725652890308,0.27011824,53704.0,53703.0,0.001628]
[1725652890528,0.08391324,53704.0,53703.0,0.001628]
[1725652890759,0.24248776,53704.0,53703.0,0.001628]
[1725652890978,0.61489876,53704.0,53703.0,0.001628]
[1725652891227,0.27011824,53704.0,53703.0,0.001628]
[1725652891441,0.559616,53704.0,53703.0,0.001628]
[1725652891651,0.27011824,53704.0,53703.0,0.001628]
[1725652891900,0.64252924,53704.0,53703.0,0.001628]
[1725652892591,0.558616,53704.0,53703.0,0.001628]
[1725652892837,0.54086663,53704.0,53703.0,0.001628]
[1725652893281,0.24149293,53704.0,53703.0,0.001628]
[1725652893496,0.27066124,53704.0,53703.0,0.001628]
[1725652893715,0.08445624,53704.0,53703.0,0.001628]
[1725652893933,0.02916831,53704.0,53703.0,0.001628]
[1725652894383,0.27066124,53704.0,53703.0,0.001628]
[1725652894606,0.58778431,53704.0,53703.0,0.001628]
[1725652895254,0.58756021,53704.0,53703.0,0.001628]
[1725652895747,0.95997121,53704.0,53703.0,0.001628]
[1725652895962,0.58756021,53704.0,53703.0,0.001628]
[1725652896203,0.67047345,53704.0,53703.0,0.001628]
[1725652896434,0.11185745,53704.0,53703.0,0.001628]
[1725652896640,0.02894421,53704.0,53703.0,0.001628]
[1725652897089,0.02894421,53704.0,53703.0,0.560255]
[1725652897315,0.11197116,53704.0,53703.0,0.743255]
[1725652897590,0.02894421,53704.0,53703.0,1.115673]
[1725652897800,0.02894421,53704.0,53703.0,0.743255]
[1725652898271,0.21514921,53704.0,53703.0,0.184628]
[1725652898482,0.02894421,53704.0,53703.0,0.184628]
[1725652898703,0.45672069,53704.0,53703.0,0.184628]
[1725652898917,0.11200011,53704.0,53703.0,0.184628]
[1725652899146,0.21514921,53704.0,53703.0,0.184628]
[1725652899392,0.11200011,53704.0,53703.0,0.184628]
[1725652899818,0.29820511,53704.0,53703.0,0.001628]
[1725652900283,0.11200011,53704.0,53703.0,0.001628]
[1725652900496,0.02394421,53704.0,53703.0,0.187837]
[1725652900957,0.08307341,53704.0,53703.0,0.187837]
[1725652901172,0.08308041,53705.0,53703.0,0.001628]
[1725652901392,0.05539317,53704.0,53703.0,0.560255]
[1725652901628,0.08390516,53708.0,53706.0,0.186198]
[1725652901873,0.186205,53704.0,53703.0,0.001628]
[1725652902134,1.04180791,53704.0,53703.0,0.001628]
[1725652902363,1.303438,53704.0,53703.0,0.001628]
[1725652902848,1.33313802,53704.0,53703.0,0.001628]
[1725652903088,1.32813802,53704.0,53703.0,0.001628]
[1725652903322,0.926027,53704.0,53703.0,0.001628]
[1725652904031,1.59432545,53704.0,53703.0,0.001628]
[1725652904248,2.36315413,53704.0,53703.0,0.001628]
[1725652905936,2.35815413,53704.0,53703.0,0.001628]
[1725652906193,2.52218788,53704.0,53703.0,0.001628]
[1725652906896,2.55136119,53704.0,53703.0,0.001628]
[1725652908592,0.05969244,53704.0,53703.0,0.516328]
[1725652908818,0.187019,53704.0,53703.0,0.516328]
[1725652909040,0.69789304,53704.0,53703.0,0.516328]
[1725652909277,0.08389347,53704.0,53703.0,0.516328]
[1725652909588,0.05620341,53704.0,53703.0,0.702537]
[1725652909799,0.08389347,53704.0,53703.0,0.516328]
[1725652910063,0.000814,53704.0,53703.0,0.516328]
[1725652910306,0.000814,53704.0,53703.0,1.074955]
[1725652910964,0.000814,53704.0,53703.0,1.447373]
[1725652912286,0.000814,53704.0,53703.0,1.074955]
[1725652914341,0.000814,53704.0,53703.0,0.516328]
[1725652914561,0.05620071,53704.0,53703.0,0.516328]
[1725652914792,0.08389407,53704.0,53703.0,0.001628]
[1725652915007,0.11158742,53704.0,53703.0,0.001628]
[1725652915436,0.08383307,53704.0,53703.0,0.001628]
[1725652915906,0.000814,53704.0,53703.0,0.001628]
[1725652916127,0.11158742,53704.0,53703.0,0.001628]
[1725652917529,0.000814,53704.0,53703.0,0.001628]
[1725652917996,0.05536734,53705.0,53703.0,0.001628]
[1725652918735,0.05536734,53704.0,53703.0,0.001628]
[1725652919409,0.05536734,53705.0,53703.0,0.001628]
[1725652919930,0.66935069,53704.0,53703.0,0.001628]
[1725652920146,0.558616,53704.0,53703.0,0.001628]
[1725652920850,0.5671957,53704.0,53703.0,0.001628]
[1725652921052,0.67796365,53704.0,53703.0,0.001628]
[1725652921372,0.9396067,53704.0,53703.0,0.001628]
[1725652922490,0.186205,53704.0,53703.0,0.001628]
[1725652922715,0.11163605,53705.0,53703.0,0.529628]
[1725652922973,0.000814,53705.0,53704.0,0.558616]
[1725652923221,0.000814,53705.0,53704.0,1.648638]
[1725652923903,0.000814,53705.0,53704.0,1.276227]
[1725652924142,0.000814,53705.0,53704.0,1.648638]
[1725652924408,0.000814,53705.0,53704.0,2.36788275]
[1725652924644,0.000814,53705.0,53704.0,1.831438]
[1725652924899,0.08313216,53723.0,53713.0,0.3452]
[1725652925160,0.05542672,53721.0,53716.0,0.186162]
[1725652925377,0.05542672,53721.0,53714.0,0.372341]
[1725652925378,0.05542672,53721.0,53715.0,0.186166]
[1725652925602,0.05542672,53722.0,53714.0,0.372341]
[1725652925832,0.24157072,53722.0,53715.0,0.186166]
[1725652926053,0.24157072,53722.0,53716.0,0.186163]
[1725652926354,0.05542672,53722.0,53716.0,0.372327]
[1725652926578,0.372267,53725.0,53719.0,0.372306]
[1725652926579,0.05542672,53725.0,53719.0,0.372306]
[1725652926804,0.08457897,53726.0,53720.0,0.186147]
[1725652927030,0.186133,53725.0,53718.0,0.186154]
[1725652927277,0.186137,53724.0,53718.0,0.186154]
[1725652927535,0.186148,53721.0,53717.0,0.528]
[1725652927780,0.02915225,53726.0,53717.0,0.528]
[1725652927781,0.45683897,53726.0,53717.0,0.528]
[1725652928019,0.08457897,53726.0,53717.0,0.900319]
[1725652928271,0.27071097,53726.0,53719.0,0.186153]
[1725652928501,0.27071097,53726.0,53717.0,0.528]
[1725652928502,0.186151,53720.0,53717.0,0.528]
[1725652928737,0.186152,53720.0,53717.0,0.528]
[1725652929212,0.372268,53725.0,53717.0,0.528]
[1725652929446,0.186138,53724.0,53718.0,0.186156]
[1725652929696,0.18614,53723.0,53717.0,0.528]
[1725652929942,0.372268,53725.0,53717.0,0.714159]
[1725652930172,0.186136,53724.0,53718.0,0.186156]
[1725652930386,0.18614,53723.0,53717.0,0.71416]
[1725652930882,0.02915225,53726.0,53718.0,0.37231]
[1725652931109,0.186133,53725.0,53719.0,0.186151]
[1725652931590,0.186133,53725.0,53720.0,0.18615]
[1725652931808,0.00082,53727.0,53717.0,0.528]
[1725652932036,0.372265,53726.0,53717.0,0.714157]
[1725652932280,0.18614,53723.0,53718.0,0.186155]
[1725652932524,0.18614,53723.0,53703.0,0.101628]
[1725652932525,0.16403375,53718.0,53708.0,0.1944]
[1725652932761,1.09495875,53710.0,53703.0,0.001628]
[1725652932980,0.931027,53704.0,53703.0,0.001628]
[1725652934163,0.05533612,53710.0,53708.0,0.186192]
[1725652934384,0.186182,53711.0,53705.0,0.525601]
[1725652934639,0.186179,53712.0,53706.0,0.1944]
[1725652934869,0.186195,53707.0,53706.0,0.1944]
[1725652935125,0.05533612,53716.0,53706.0,0.1944]
[1725652935126,0.372371,53710.0,53706.0,0.1944]
[1725652935371,0.372363,53711.0,53706.0,0.1944]
[1725652935601,0.42768612,53713.0,53705.0,0.3394]
[1725652935602,0.186198,53706.0,53705.0,0.3394]
[1725652935821,0.05533612,53713.0,53703.0,0.001628]
[1725652935822,0.931027,53704.0,53703.0,0.001628]
[1725652936050,1.648838,53704.0,53703.0,0.001628]
[1725652936285,1.88718819,53704.0,53703.0,0.001628]
[1725652936549,1.54332942,53704.0,53703.0,0.001628]
[1725652936771,1.51564639,53704.0,53703.0,0.001628]
[1725652937000,1.43259964,53704.0,53703.0,0.001628]
[1725652937214,1.53864454,53704.0,53703.0,0.001628]
[1725652937431,1.91105554,53704.0,53703.0,0.001628]
[1725652937691,2.34051064,53704.0,53703.0,0.001628]
[1725652938127,2.47892019,53704.0,53703.0,0.001628]
[1725652938560,2.34051064,53704.0,53703.0,0.001628]
[1725652939441,1.915938,53704.0,53703.0,0.001628]
[1725652939671,2.02668535,53704.0,53703.0,0.002128]
[1725652940344,1.915938,53704.0,53703.0,0.002128]
[1725652940583,2.026681,53704.0,53703.0,0.002128]
[1725652940806,1.514181,53704.0,53703.0,0.002128]
[1725652941028,0.931027,53704.0,53703.0,0.002128]
[1725652941248,0.110743,53705.0,53703.0,0.002128]
[1725652941249,0.05537588,53705.0,53703.0,0.002128]
[1725652941468,0.05537588,53706.0,53704.0,0.3199]
[1725652941753,0.08306073,53709.0,53704.0,0.3199]
[1725652941754,0.558606,53705.0,53704.0,0.3199]
[1725652941975,0.186202,53705.0,53704.0,0.3199]
[1725652942421,0.186197,53707.0,53704.0,0.3199]
[1725652942646,0.18619,53709.0,53704.0,0.3199]
[1725652942861,0.186193,53708.0,53704.0,0.3199]
[1725652943301,0.186195,53707.0,53704.0,0.3199]
[1725652943517,0.372366,53711.0,53704.0,0.3199]
[1725652943518,0.186182,53711.0,53704.0,0.3199]
[1725652943731,0.186182,53711.0,53706.0,0.186197]
[1725652943959,0.186188,53709.0,53704.0,0.506104]
[1725652944181,0.372367,53711.0,53704.0,0.3199]
[1725652944406,0.186195,53708.0,53704.0,0.3199]
[1725652944622,0.187009,53708.0,53704.0,0.3199]
[1725652945083,0.000814,53708.0,53704.0,0.506105]
[1725652945326,0.187006,53708.0,53704.0,0.3199]
[1725652945564,0.558606,53705.0,53704.0,0.3199]
[1725652945796,0.558606,53705.0,53703.0,0.002128]
[1725652945797,0.372404,53705.0,53703.0,0.002128]
[1725652946008,0.558616,53704.0,53703.0,0.002128]
[1725652946671,0.931027,53704.0,53703.0,0.002128]
[1725652946881,1.303438,53704.0,53703.0,0.002128]
[1725652947309,0.96019523,53704.0,53703.0,0.002128]
[1725652948223,1.0156118,53704.0,53703.0,0.002128]
[1725652948441,0.96019523,53704.0,53703.0,0.002128]
[1725652949096,1.01561515,53704.0,53703.0,0.002128]
[1725652950069,0.96019523,53704.0,53703.0,0.002128]
[1725652950300,0.95969523,53704.0,53703.0,0.002128]
[1725652950781,1.675349,53704.0,53703.0,0.002128]
[1725652951019,1.56434755,53704.0,53703.0,0.002128]
[1725652951235,1.425938,53704.0,53703.0,0.002128]
[1725652951670,2.1576642,53704.0,53703.0,0.002128]
[1725652951888,2.1576642,53704.0,53689.0,0.001628]
[1725652951889,2.193686,53690.0,53689.0,0.001628]
[1725652952121,0.186303,53676.0,53671.0,0.4697]
[1725652952339,0.186303,53676.0,53665.0,0.3381]
[1725652952340,1.51496823,53676.0,53665.0,0.3381]
[1725652952567,1.982627,53676.0,53675.0,0.00163]
[1725652953733,2.12090964,53676.0,53675.0,0.00163]
[1725652954174,1.982627,53676.0,53675.0,0.00163]
[1725652954407,1.982627,53676.0,53661.0,0.19727866]
[1725652954408,0.01,53672.0,53661.0,0.00017866]
[1725652954628,1.074654,53662.0,53661.0,0.00017866]
[1725652954882,2.192763,53662.0,53661.0,0.00017866]
[1725652955099,2.45588996,53662.0,53661.0,0.00017866]
[1725652955557,2.40052994,53662.0,53661.0,0.00017866]
[1725652955787,2.40052994,53662.0,53658.0,0.001632]
[1725652955788,0.03,53659.0,53658.0,0.001632]
[1725652956040,0.03,53659.0,53649.0,0.00162]
[1725652956041,0.743347,53653.0,53649.0,0.00162]
[1725652956279,1.98199189,53653.0,53649.0,0.00162]
[1725652956504,2.74599902,53653.0,53649.0,0.00162]
[1725652956716,2.78373022,53653.0,53649.0,0.00162]
[1725652956939,2.7306382,53653.0,53649.0,0.00162]
[1725652957200,2.310142,53653.0,53649.0,0.00162]
[1725652957422,2.36526261,53653.0,53649.0,0.00162]
[1725652957641,2.33734052,53653.0,53649.0,0.00162]
[1725652958090,1.427677,53653.0,53649.0,0.00162]
[1725652958312,1.404677,53653.0,53649.0,0.00162]
[1725652958792,1.031912,53653.0,53649.0,0.00162]
[1725652959012,1.404677,53653.0,53649.0,0.00162]
[1725652959247,1.779442,53653.0,53649.0,0.00162]
[1725652960323,1.800442,53653.0,53649.0,0.00162]